bitfinex/quotes_BTCUSD_20240620
["timestamp","ask_amount","ask_price","bid_price","bid_amount"]
[1718868651352,0.32801363,66005.0,66004.0,0.02673938]
[1718868651708,0.32701363,66005.0,66004.0,0.02673938]
[1718868651909,0.32701363,66005.0,66004.0,0.04673938]
[1718868652221,0.32801363,66005.0,66004.0,0.05373938]
[1718868652422,0.3174625,66005.0,66004.0,0.05373938]
[1718868652639,0.3184625,66005.0,66004.0,0.03973938]
[1718868652854,0.5692625,66005.0,66004.0,0.03973938]
[1718868653063,0.5692625,66005.0,66004.0,0.05973938]
[1718868653930,0.57895409,66005.0,66004.0,0.05973938]
[1718868654141,0.57895448,66005.0,66004.0,0.05973938]
[1718868654762,0.07778,66005.0,66004.0,0.21124438]
[1718868656452,0.07778,66005.0,66004.0,0.51425538]
[1718868656869,0.07778,66005.0,66004.0,0.7688165]
[1718868657026,0.07778,66005.0,66004.0,0.9696275]
[1718868658064,0.07778,66005.0,66004.0,1.0716275]
[1718868658264,0.07778,66005.0,66004.0,0.9696275]
[1718868658468,0.07778,66005.0,66004.0,1.0716275]
[1718868659276,0.07778,66005.0,66004.0,1.3746385]
[1718868659578,0.07778,66005.0,66004.0,1.9677385]
[1718868659806,0.04513322,66025.0,66021.0,0.02]
[1718868659974,0.05375322,66030.0,66027.0,0.151451]
[1718868660183,0.00862,66030.0,66029.0,0.02]
[1718868660385,0.00862,66030.0,66029.0,0.474345]
[1718868660585,0.0180584,66030.0,66029.0,0.72125417]
[1718868660817,0.00862,66030.0,66029.0,0.72125417]
[1718868661037,0.00862,66030.0,66029.0,1.34541229]
[1718868661239,0.00862,66030.0,66029.0,1.64830929]
[1718868661380,0.00962,66030.0,66029.0,1.66230929]
[1718868661814,0.00862,66030.0,66029.0,1.64830929]
[1718868662429,0.00962,66030.0,66029.0,2.39930629]
[1718868662891,0.00862,66030.0,66029.0,2.43530629]
[1718868663093,0.00862,66030.0,66029.0,2.48530629]
[1718868663270,0.00862,66030.0,66029.0,2.65910629]
[1718868663483,0.00862,66030.0,66029.0,2.64510629]
[1718868663800,0.00862,66030.0,66029.0,2.96200329]
[1718868664004,0.00862,66030.0,66029.0,2.75910629]
[1718868664430,0.00862,66030.0,66029.0,2.77310629]
[1718868664631,0.00862,66030.0,66029.0,2.75910629]
[1718868664869,0.00862,66030.0,66029.0,2.74510629]
[1718868665074,0.00862,66030.0,66029.0,2.75910629]
[1718868665276,0.00862,66030.0,66029.0,2.62740629]
[1718868665688,0.00862,66030.0,66029.0,2.77310629]
[1718868665890,0.00862,66030.0,66029.0,2.62740629]
[1718868666099,0.00862,66030.0,66029.0,2.77310629]
[1718868666300,0.00862,66030.0,66029.0,3.07600329]
[1718868667288,0.00862,66030.0,66029.0,3.25208329]
[1718868667525,0.00862,66033.0,66032.0,3.150836]
[1718868667730,0.00862,66037.0,66036.0,1.711762]
[1718868667940,0.00862,66037.0,66036.0,2.74613312]
[1718868668146,0.00862,66037.0,66036.0,3.07568608]
[1718868669348,0.00862,66037.0,66036.0,3.08968608]
[1718868670339,0.00862,66037.0,66036.0,2.61812108]
[1718868670527,0.00862,66037.0,66036.0,2.14785608]
[1718868670990,0.00862,66037.0,66036.0,2.13385608]
[1718868671142,0.00862,66037.0,66036.0,1.78615608]
[1718868671321,0.00862,66037.0,66036.0,1.80015608]
[1718868671522,0.00862,66037.0,66036.0,1.78615608]
[1718868671831,0.00862,66037.0,66036.0,1.91655349]
[1718868672031,0.00862,66037.0,66036.0,1.90917349]
[1718868672663,0.00862,66037.0,66036.0,1.89517349]
[1718868672994,0.00762129,66044.0,66043.0,0.524249]
[1718868673171,0.00762129,66044.0,66043.0,1.00264312]
[1718868673378,0.00762129,66044.0,66043.0,1.00647363]
[1718868673596,0.00762129,66044.0,66043.0,1.15217363]
[1718868673946,0.00762129,66044.0,66043.0,0.79934063]
[1718868674281,0.00762129,66044.0,66043.0,0.33909163]
[1718868674745,0.00762129,66044.0,66043.0,0.49050763]
[1718868674938,0.00762129,66044.0,66043.0,0.31609163]
[1718868675138,0.26442129,66044.0,66043.0,0.17039163]
[1718868675313,0.26442129,66044.0,66043.0,0.01783051]
[1718868675516,0.59522129,66044.0,66043.0,0.03183051]
[1718868675716,0.59522129,66044.0,66043.0,0.014]
[1718868675717,0.74663529,66044.0,66043.0,0.014]
[1718868676184,1.35229129,66044.0,66043.0,0.028]
[1718868676507,1.67511929,66044.0,66043.0,0.028]
[1718868676966,0.5876,66029.0,66025.0,0.45769034]
[1718868677120,0.15145,66028.0,66025.0,0.45769034]
[1718868677303,0.302904,66028.0,66024.0,0.4752]
[1718868677539,0.151452,66028.0,66024.0,0.4752]
[1718868677743,0.890501,66029.0,66024.0,0.4752]
[1718868677949,0.890501,66029.0,66016.0,0.171477]
[1718868677950,0.151468,66021.0,66016.0,0.02]
[1718868678151,0.151479,66016.0,66008.0,0.02]
[1718868678372,0.5732,66020.0,66007.0,0.1457]
[1718868678577,0.5732,66020.0,66003.0,0.07628172]
[1718868678578,0.2429,66009.0,66003.0,0.07628172]
[1718868678776,0.2429,66009.0,66000.0,0.02]
[1718868678777,0.151501,66006.0,66000.0,0.02]
[1718868678977,0.3314,66008.0,66000.0,0.02]
[1718868679326,0.151503,66006.0,66000.0,0.02]
[1718868679495,0.151505,66005.0,65996.0,0.171523]
[1718868679752,0.302998,66007.0,65992.0,0.02]
[1718868679753,0.151518,65999.0,65992.0,0.02]
[1718868679950,0.2526,66007.0,65989.0,0.4752]
[1718868679951,0.151514,66001.0,65995.0,0.07628172]
[1718868680085,0.15152,65998.0,65989.0,0.4952]
[1718868680286,0.2526,65997.0,65990.0,0.15256112]
[1718868680538,0.452324,65996.0,65989.0,0.62776112]
[1718868680752,0.151528,65995.0,65989.0,0.62776112]
[1718868680920,0.151528,65995.0,65992.0,0.01]
[1718868681325,0.15153,65994.0,65989.0,0.4752]
[1718868681693,0.603852,65996.0,65989.0,0.4752]
[1718868681694,0.151538,65990.0,65989.0,0.4752]
[1718868681900,0.303076,65990.0,65982.0,0.000946]
[1718868682099,0.2564,65986.0,65982.0,0.000946]
[1718868683630,0.3277,65985.0,65982.0,0.000946]
[1718868684349,0.3277,65985.0,65982.0,0.012946]
[1718868684568,0.3277,65985.0,65982.0,0.013946]
[1718868684708,0.3277,65985.0,65982.0,0.000946]
[1718868685273,0.3297,65985.0,65983.0,0.07628172]
[1718868685479,0.3297,65985.0,65982.0,0.007946]
[1718868685480,0.454662,65983.0,65982.0,0.007946]
[1718868686215,0.454662,65983.0,65982.0,0.001946]
[1718868686533,0.151554,65983.0,65982.0,0.001946]
[1718868686751,0.454662,65983.0,65982.0,0.000946]
[1718868686948,0.55792535,65983.0,65982.0,0.000946]
[1718868687171,0.455662,65983.0,65982.0,0.010946]
[1718868687630,0.152554,65983.0,65982.0,0.010946]
[1718868687845,0.001,65983.0,65982.0,0.010946]
[1718868688473,0.002,65983.0,65982.0,0.018946]
[1718868688712,0.002,65983.0,65982.0,0.34306312]
[1718868688922,0.001,65983.0,65982.0,0.96428712]
[1718868689121,0.001,65983.0,65982.0,0.94428712]
[1718868689324,0.002,65983.0,65982.0,0.97628712]
[1718868689523,0.002,65983.0,65982.0,0.67317512]
[1718868690246,0.2479,65983.0,65982.0,0.022946]
[1718868690789,0.2459,65983.0,65982.0,0.000946]
[1718868690940,0.2469,65983.0,65982.0,0.026946]
[1718868691139,0.2479,65983.0,65982.0,0.026946]
[1718868691340,0.2469,65983.0,65982.0,0.014946]
[1718868691548,0.2459,65983.0,65982.0,0.00089466]
[1718868691748,0.2469,65983.0,65982.0,0.01682957]
[1718868692535,0.2469,65983.0,65982.0,0.02682957]
[1718868693581,0.2459,65983.0,65982.0,0.01089466]
[1718868693750,0.2459,65983.0,65982.0,0.01482957]
[1718868694113,0.2469,65983.0,65982.0,0.02782957]
[1718868694330,0.001,65983.0,65982.0,0.02782957]
[1718868694700,0.001,65983.0,65982.0,0.67805869]
[1718868695027,0.001,65983.0,65982.0,0.35494669]
[1718868695452,0.303056,65995.0,65982.0,0.35494669]
[1718868695453,0.03672709,66009.0,66001.0,0.02]
[1718868695649,0.3232,66038.0,66022.0,0.07628172]
[1718868695867,0.3232,66038.0,66019.0,0.30294]
[1718868695868,0.151435,66035.0,66019.0,0.30294]
[1718868695977,0.3232,66038.0,66025.0,0.151457]
[1718868695978,0.302861,66037.0,66025.0,0.151457]
[1718868696187,0.3232,66038.0,66020.0,0.02692675]
[1718868696404,0.3232,66038.0,66026.0,0.00392647]
[1718868696604,0.302861,66037.0,66025.0,0.151457]
[1718868696802,0.3232,66038.0,66027.0,0.00392643]
[1718868696803,0.151433,66036.0,66027.0,0.00392643]
[1718868697006,0.151438,66034.0,66026.0,0.00392647]
[1718868697208,0.151438,66034.0,66025.0,0.151456]
[1718868697428,0.151438,66034.0,66027.0,0.00392643]
[1718868697806,0.151438,66034.0,66025.0,0.151456]
[1718868697968,0.151439,66033.0,66028.0,0.00392638]
[1718868698160,0.151442,66032.0,66023.0,0.15146]
[1718868698366,0.302876,66034.0,66025.0,0.005]
[1718868698558,0.302876,66034.0,66027.0,0.003]
[1718868698790,0.38326028,66034.0,66027.0,0.003]
[1718868698956,0.151443,66032.0,66028.0,0.00390768]
[1718868699151,0.151445,66031.0,66028.0,0.00990768]
[1718868699358,0.151448,66030.0,66028.0,0.006]
[1718868699872,0.02,66032.0,66028.0,0.006]
[1718868699873,1.02774284,66029.0,66028.0,0.006]
[1718868700086,1.90595912,66029.0,66028.0,0.006]
[1718868700287,2.20885612,66029.0,66028.0,0.006]
[1718868700698,0.151494,66009.0,66004.0,0.45769034]
[1718868700913,0.02,66017.0,66005.0,0.15256112]
[1718868701117,0.151488,66012.0,66005.0,0.15678332]
[1718868701471,0.15149,66011.0,66005.0,0.15678332]
[1718868701677,0.302966,66014.0,66005.0,0.15678332]
[1718868702235,0.302975,66013.0,66005.0,0.15778332]
[1718868702445,1.3623324,66029.0,66005.0,0.15678332]
[1718868702446,0.02,66021.0,66005.0,0.15678332]
[1718868702688,0.15249,66011.0,66005.0,0.16378332]
[1718868703267,0.001,66011.0,66005.0,0.16378332]
[1718868703625,0.152491,66011.0,66005.0,0.16378332]
[1718868703752,0.001,66011.0,66005.0,0.16378332]
[1718868703959,0.151492,66010.0,66005.0,0.16178332]
[1718868704558,0.1,66029.0,66009.0,0.07628172]
[1718868704764,0.151461,66024.0,66019.0,0.07628172]
[1718868704991,0.151456,66026.0,66020.0,0.00420909]
[1718868705224,0.151456,66026.0,66020.0,0.15677021]
[1718868706266,0.302903,66028.0,66020.0,0.15677021]
[1718868706267,0.151452,66028.0,66020.0,0.15677021]
[1718868706490,0.878993,66030.0,66020.0,0.15677021]
[1718868706491,0.151453,66027.0,66020.0,0.15677021]
[1718868706663,0.151456,66026.0,66020.0,0.15677021]
[1718868706844,0.302898,66029.0,66020.0,0.15256112]
[1718868707064,0.37627238,66029.0,66021.0,0.00420904]
[1718868707385,0.302908,66027.0,66021.0,0.00420904]
[1718868707549,0.37627338,66029.0,66021.0,0.00420904]
[1718868707751,0.151459,66025.0,66021.0,0.00420904]
[1718868708290,0.151456,66026.0,66021.0,0.00420904]
[1718868708490,0.151456,66026.0,66021.0,0.001]
[1718868708697,0.151456,66026.0,66022.0,0.00420899]
[1718868708698,0.03467613,66026.0,66022.0,0.00420899]
[1718868709097,0.151461,66024.0,66022.0,0.00420899]
[1718868709903,0.302906,66027.0,66022.0,0.00420899]
[1718868710088,0.302899,66029.0,66022.0,0.00420899]
[1718868710431,0.302912,66026.0,66023.0,0.00420894]
[1718868710749,0.151459,66025.0,66023.0,0.00420894]
[1718868710870,0.151464,66022.0,66021.0,0.012]
[1718868711083,0.454393,66022.0,66021.0,0.006]
[1718868711277,0.757322,66022.0,66021.0,0.006]
[1718868711479,0.757322,66022.0,66009.0,0.22777472]
[1718868711480,0.151473,66019.0,66009.0,0.22777472]
[1718868711701,0.151473,66018.0,66011.0,0.15256112]
[1718868711957,0.151473,66018.0,66012.0,0.023]
[1718868712075,0.151473,66018.0,66013.0,0.15256112]
[1718868712280,0.151473,66018.0,66013.0,0.15677745]
[1718868712741,0.302948,66018.0,66013.0,0.15677745]
[1718868713082,0.302948,66018.0,66013.0,0.00421633]
[1718868713083,0.454449,66014.0,66013.0,0.00421633]
[1718868713291,0.757415,66014.0,66013.0,0.00421633]
[1718868713538,0.757415,66014.0,66002.0,0.32048172]
[1718868713539,0.151492,66010.0,66002.0,0.32048172]
[1718868713737,0.151492,66010.0,66003.0,0.15256112]
[1718868713945,0.454464,66012.0,66011.0,0.014]
[1718868714147,0.151487,66012.0,66011.0,0.014]
[1718868714521,0.151487,66012.0,66003.0,0.15256112]
[1718868714724,0.001,66010.0,66004.0,0.00421774]
[1718868714950,0.30299,66009.0,66004.0,0.00421774]
[1718868715185,0.151508,66003.0,66002.0,0.014]
[1718868715385,0.151508,66003.0,65992.0,0.580166]
[1718868715586,0.302973,66013.0,65995.0,0.07628172]
[1718868715819,0.302973,66013.0,66003.0,0.014]
[1718868715820,0.151494,66009.0,66003.0,0.014]
[1718868716067,0.151494,66009.0,66000.0,0.151513]
[1718868716447,0.151494,66009.0,66002.0,0.014]
[1718868716884,0.001,66012.0,66003.0,0.25184284]
[1718868717060,0.302966,66014.0,66004.0,0.151505]
[1718868717261,0.302966,66014.0,66005.0,0.30406412]
[1718868717509,0.151486,66013.0,66005.0,0.30406412]
[1718868717707,0.302971,66013.0,66005.0,0.15256112]
[1718868717908,0.3711367,66013.0,66005.0,0.15256112]
[1718868718134,0.151489,66012.0,66005.0,0.15256112]
[1718868718902,0.151489,66012.0,66005.0,0.16356112]
[1718868719088,0.151489,66012.0,66005.0,0.15256112]
[1718868719513,0.227209,66012.0,66005.0,0.16556112]
[1718868719930,0.151491,66011.0,66005.0,0.16556112]
[1718868720503,0.302984,66010.0,66005.0,0.17656112]
[1718868720707,0.151493,66010.0,66005.0,0.17656112]
[1718868721108,0.227209,66012.0,66005.0,0.16556112]
[1718868721363,0.151491,66011.0,66005.0,0.16556112]
[1718868721581,0.151491,66011.0,66005.0,0.17756112]
[1718868721582,0.152491,66011.0,66005.0,0.17756112]
[1718868721783,0.152491,66011.0,66005.0,0.16456112]
[1718868721989,0.001,66011.0,66010.0,0.37926572]
[1718868722334,0.07572,66012.0,66011.0,0.474468]
[1718868722482,0.07572,66012.0,66011.0,0.95300812]
[1718868722684,0.151453,66027.0,66019.0,0.15147]
[1718868722903,0.151453,66027.0,66019.0,0.15256112]
[1718868722904,0.151458,66025.0,66019.0,0.15256112]
[1718868723116,0.151458,66025.0,66020.0,0.00422497]
[1718868724466,0.151458,66025.0,66020.0,0.01022497]
[1718868724467,0.152458,66025.0,66020.0,0.01022497]
[1718868724894,0.228178,66025.0,66020.0,0.01022497]
[1718868725097,0.15146,66024.0,66020.0,0.01022497]
[1718868725743,0.15146,66024.0,66020.0,0.01722497]
[1718868726120,0.151466,66021.0,66020.0,0.01022497]
[1718868726338,0.151466,66021.0,66020.0,0.006]
[1718868726543,0.151466,66021.0,66020.0,0.015]
[1718868726843,0.16090719,66021.0,66020.0,0.015]
[1718868727247,0.1609072,66021.0,66020.0,0.009]
[1718868727448,0.0094412,66021.0,66020.0,0.009]
[1718868727647,0.00944104,66021.0,66020.0,0.015]
[1718868728110,0.151464,66022.0,66020.0,0.00421484]
[1718868728424,0.00944093,66021.0,66020.0,0.023]
[1718868728768,0.00944093,66021.0,66020.0,0.02721484]
[1718868728970,0.151466,66021.0,66020.0,0.013]
[1718868729194,0.16090693,66021.0,66020.0,0.01721484]
[1718868729397,0.00944093,66021.0,66020.0,0.02521484]
[1718868729596,0.15146,66024.0,66020.0,0.021]
[1718868729798,0.15146,66024.0,66020.0,0.0252134]
[1718868729799,0.00944093,66023.0,66020.0,0.0252134]
[1718868730001,0.16090293,66023.0,66020.0,0.021]
[1718868730209,0.16090493,66022.0,66021.0,0.00421335]
[1718868730534,0.16197815,66022.0,66021.0,0.00421335]
[1718868731103,0.16197815,66022.0,66020.0,0.023]
[1718868731282,0.16197815,66022.0,66020.0,0.01]
[1718868731283,0.01051415,66021.0,66020.0,0.01]
[1718868731483,0.01051415,66021.0,66015.0,0.15148]
[1718868731684,0.01051415,66021.0,66020.0,0.01]
[1718868732144,0.01051415,66021.0,66016.0,0.15256112]
[1718868732301,0.01051415,66021.0,66017.0,0.023]
[1718868732510,0.151462,66023.0,66020.0,0.011]
[1718868732710,0.01338097,66022.0,66018.0,0.15256112]
[1718868732895,0.151468,66021.0,66018.0,0.15256112]
[1718868733094,0.302943,66019.0,66011.0,0.4752]
[1718868733294,0.01338097,66018.0,66012.0,0.15256112]
[1718868733501,0.01338097,66017.0,66013.0,0.023]
[1718868733698,0.605858,66022.0,66014.0,0.15256112]
[1718868733699,0.01338097,66016.0,66014.0,0.15256112]
[1718868733902,0.01338097,66015.0,66014.0,0.15256112]
[1718868735783,0.01338097,66015.0,66014.0,0.16656112]
[1718868736122,0.01338097,66015.0,66014.0,0.18056112]
[1718868738097,0.01338097,66015.0,66014.0,0.18477483]
[1718868741090,0.01122087,66015.0,66014.0,0.18477483]
[1718868741813,0.01128228,66018.0,66014.0,0.18477483]
[1718868742014,0.151472,66019.0,66014.0,0.18477483]
[1718868742015,0.01128228,66015.0,66014.0,0.18477483]
[1718868742390,0.151472,66019.0,66014.0,0.18477483]
[1718868742391,0.01128228,66018.0,66014.0,0.18477483]
[1718868742596,0.01128228,66017.0,66014.0,0.18477483]
[1718868742868,0.01128228,66016.0,66014.0,0.18477483]
[1718868743069,0.01128228,66015.0,66014.0,0.18477483]
[1718868743270,0.01128228,66015.0,66014.0,0.17077483]
[1718868743629,0.01128228,66015.0,66014.0,0.03221371]
[1718868743948,0.80010691,66015.0,66014.0,0.028]
[1718868744114,0.80010691,66015.0,66014.0,0.014]
[1718868744115,0.76868428,66015.0,66014.0,0.014]
[1718868744313,1.07164528,66015.0,66014.0,0.014]
[1718868744651,1.24419942,66015.0,66014.0,0.028]
[1718868744851,1.35767634,66015.0,66014.0,0.028]
[1718868745013,1.35767634,66015.0,66014.0,0.014]
[1718868745014,1.24419942,66015.0,66014.0,0.014]
[1718868745371,1.308947,66011.0,66010.0,0.000946]
[1718868745577,1.34022928,66011.0,66010.0,0.000946]
[1718868745779,1.45376771,66011.0,66010.0,0.000946]
[1718868745958,1.34022928,66011.0,66010.0,0.000946]
[1718868746159,1.60631573,66011.0,66010.0,0.000946]
[1718868746334,1.49278342,66011.0,66010.0,0.000946]
[1718868746536,1.89576242,66011.0,66010.0,0.000946]
[1718868746736,1.94247233,66011.0,66010.0,0.000946]
[1718868747767,1.94247233,66011.0,66010.0,9.9e-05]
[1718868748019,1.94647233,66011.0,66010.0,9.9e-05]
[1718868748359,1.92647233,66011.0,66010.0,9.9e-05]
[1718868748562,1.94647233,66011.0,66010.0,9.9e-05]
[1718868748763,1.79391819,66011.0,66010.0,9.9e-05]
[1718868749387,1.74720828,66011.0,66010.0,9.9e-05]
[1718868749756,2.3027484,66011.0,66010.0,9.9e-05]
[1718868749957,2.61485503,66011.0,66010.0,9.9e-05]
[1718868750189,2.47863102,66011.0,66010.0,9.9e-05]
[1718868750407,2.63118516,66011.0,66010.0,9.9e-05]
[1718868751656,2.65773705,66011.0,66010.0,9.9e-05]
[1718868751869,2.73345705,66011.0,66010.0,9.9e-05]
[1718868754933,3.12549904,66011.0,66010.0,9.9e-05]
[1718868755193,3.07549904,66011.0,66010.0,9.9e-05]
[1718868755312,2.82252004,66011.0,66010.0,9.9e-05]
[1718868756176,2.81952004,66011.0,66010.0,9.9e-05]
[1718868756368,3.12249904,66011.0,66010.0,9.9e-05]
[1718868756541,3.12649904,66011.0,66010.0,0.001099]
[1718868756718,3.28207514,66011.0,66010.0,0.002099]
[1718868756920,3.27707514,66011.0,66010.0,0.001099]
[1718868757120,3.27307514,66011.0,66010.0,9.9e-05]
[1718868757317,3.27307514,66011.0,66010.0,0.001099]
[1718868757525,3.28207514,66011.0,66010.0,0.002099]
[1718868758592,3.28207514,66011.0,66010.0,0.001]
[1718868758753,0.151551,65984.0,65983.0,0.000946]
[1718868758949,0.454654,65984.0,65983.0,0.000946]
[1718868759169,1.09030613,65984.0,65983.0,0.00518483]
[1718868759406,1.19030613,65984.0,65983.0,0.000946]
[1718868759842,1.19030613,65984.0,65983.0,0.014946]
[1718868760448,1.19030613,65984.0,65983.0,0.028946]
[1718868760655,1.19030613,65984.0,65983.0,0.014946]
[1718868761070,1.17430613,65984.0,65983.0,0.014946]
[1718868761273,1.19430613,65984.0,65983.0,0.014946]
[1718868761962,1.17430613,65984.0,65983.0,0.014946]
[1718868762158,1.16486,65984.0,65983.0,0.014946]
[1718868762397,1.17430777,65984.0,65983.0,0.014946]
[1718868763835,1.29373855,65984.0,65983.0,0.014946]
[1718868764247,0.87120477,65984.0,65983.0,0.014946]
[1718868764440,0.01344777,65984.0,65983.0,0.279646]
[1718868764640,0.01344777,65984.0,65983.0,0.35592772]
[1718868764641,0.155551,65984.0,65983.0,0.35592772]
[1718868764845,0.458654,65984.0,65983.0,0.3602143]
[1718868765156,1.06486,65984.0,65983.0,0.01923258]
[1718868765385,0.761757,65984.0,65983.0,0.014946]
[1718868765627,0.231331,65984.0,65983.0,0.014946]
[1718868765818,0.531434,65984.0,65983.0,0.014946]
[1718868766124,0.531434,65984.0,65983.0,0.01923757]
[1718868766300,0.530434,65984.0,65983.0,0.000946]
[1718868766621,0.001,65984.0,65983.0,0.000946]
[1718868766847,0.455654,65984.0,65983.0,0.000946]
[1718868767050,0.454654,65984.0,65983.0,0.000946]
[1718868767254,0.455654,65984.0,65983.0,0.008946]
[1718868767467,0.759757,65984.0,65983.0,0.008946]
[1718868767669,1.1387345,65984.0,65983.0,0.008946]
[1718868767883,1.73614842,65984.0,65983.0,0.008946]
[1718868768729,1.91192842,65984.0,65983.0,0.008946]
[1718868769086,2.06448954,65984.0,65983.0,0.008946]
[1718868769905,1.98861504,65984.0,65983.0,0.008946]
[1718868771466,2.29171804,65984.0,65983.0,0.008946]
[1718868771608,2.36051404,65984.0,65983.0,0.008946]
[1718868773317,2.36051404,65984.0,65983.0,0.00886903]
[1718868774934,1.01434692,65984.0,65983.0,0.00886903]
[1718868775105,1.24865392,65984.0,65983.0,0.00886903]
[1718868775777,1.26865392,65984.0,65983.0,0.00886903]
[1718868775903,1.17287392,65984.0,65983.0,0.00886903]
[1718868776103,1.19287392,65984.0,65983.0,0.00886903]
[1718868776708,1.86956131,65984.0,65983.0,0.00886903]
[1718868778933,2.04866543,65984.0,65983.0,0.00886903]
[1718868779298,2.35176843,65984.0,65983.0,0.00886903]
[1718868779497,2.41847736,65984.0,65983.0,0.00886903]
[1718868780927,2.46244934,65984.0,65983.0,0.00886903]
[1718868781365,2.56244934,65984.0,65983.0,0.00886903]
[1718868781768,2.91555234,65984.0,65983.0,0.00886903]
[1718868782060,2.86555234,65984.0,65983.0,0.00886903]
[1718868782239,2.86455234,65984.0,65983.0,0.00886903]
[1718868782437,2.96455234,65984.0,65983.0,0.00886903]
[1718868782638,2.96555234,65984.0,65983.0,0.00086903]
[1718868783254,3.03933234,65984.0,65983.0,0.00086903]
[1718868783422,2.98933234,65984.0,65983.0,0.00086903]
[1718868783605,3.03933234,65984.0,65983.0,0.00086903]
[1718868783802,2.63622934,65984.0,65983.0,0.00086903]
[1718868784150,2.47394195,65984.0,65983.0,0.00186903]
[1718868784285,1.54343895,65984.0,65983.0,0.00186903]
[1718868784485,1.43275804,65984.0,65983.0,0.00186903]
[1718868784688,1.45275804,65984.0,65983.0,0.0061691]
[1718868784909,1.45275804,65984.0,65983.0,0.00186903]
[1718868785095,1.60531218,65984.0,65983.0,0.00186903]
[1718868785744,1.61131218,65984.0,65983.0,0.00286903]
[1718868786162,1.91441518,65984.0,65983.0,0.00286903]
[1718868786356,1.95838716,65984.0,65983.0,0.00286903]
[1718868786700,1.65528416,65984.0,65983.0,0.00286903]
[1718868786906,1.45875804,65984.0,65983.0,0.00286903]
[1718868788351,1.43875804,65984.0,65983.0,0.00286903]
[1718868788554,0.65344792,65984.0,65983.0,0.00286903]
[1718868788811,0.65344792,65984.0,65983.0,0.00717121]
[1718868789178,0.95655092,65984.0,65983.0,0.00717121]
[1718868789627,0.95655092,65984.0,65983.0,0.00517121]
[1718868789628,1.36695217,65984.0,65983.0,0.00517121]
[1718868789766,1.51951329,65984.0,65983.0,0.00517121]
[1718868789946,1.51951329,65984.0,65983.0,0.00686903]
[1718868790457,1.44373329,65984.0,65983.0,0.00686903]
[1718868790659,1.44373329,65984.0,65983.0,0.00486903]
[1718868791704,1.77941329,65984.0,65983.0,0.00086903]
[1718868791916,2.12648827,65984.0,65983.0,0.00086903]
[1718868792117,2.12648827,65984.0,65983.0,0.00186903]
[1718868792118,2.28248827,65984.0,65983.0,0.00186903]
[1718868792436,2.29832911,65984.0,65983.0,0.001]
[1718868792647,2.29832911,65984.0,65983.0,0.002]
[1718868792648,2.30432911,65984.0,65983.0,0.002]
[1718868792847,2.41773026,65984.0,65983.0,0.002]
[1718868793042,1.433986,65983.0,65982.0,0.00089466]
[1718868793299,1.89308716,65983.0,65982.0,0.00089466]
[1718868793472,2.15675759,65983.0,65982.0,0.00089466]
[1718868793648,2.043336,65983.0,65982.0,0.00089466]
[1718868793866,1.943336,65983.0,65982.0,0.00089466]
[1718868794028,2.043336,65983.0,65982.0,0.00089466]
[1718868795144,2.047336,65983.0,65982.0,0.00089466]
[1718868795347,2.350444,65983.0,65982.0,0.00089466]
[1718868795550,2.047336,65983.0,65982.0,0.00089466]
[1718868795824,2.03951416,65983.0,65982.0,0.00189466]
[1718868796223,2.30176002,65983.0,65982.0,0.00189466]
[1718868796430,2.24752528,65983.0,65982.0,0.00189466]
[1718868796625,2.29074639,65983.0,65982.0,0.00089466]
[1718868796829,2.15456823,65983.0,65982.0,0.00089466]
[1718868796985,2.16456823,65983.0,65982.0,0.00189466]
[1718868797216,2.31712237,65983.0,65982.0,0.00189466]
[1718868797421,2.21712237,65983.0,65982.0,0.00189466]
[1718868798230,1.70776823,65983.0,65982.0,0.00289466]
[1718868798574,1.66399678,65983.0,65982.0,0.00289466]
[1718868798781,1.82125464,65983.0,65982.0,0.00289466]
[1718868798988,1.70776823,65983.0,65982.0,0.00289466]
[1718868799184,1.66399678,65983.0,65982.0,0.00289466]
[1718868799388,1.81655092,65983.0,65982.0,0.00289466]
[1718868799614,1.80710126,65983.0,65982.0,0.00289466]
[1718868799747,1.86078354,65983.0,65982.0,0.00289466]
[1718868800918,1.7082294,65983.0,65982.0,0.00289466]
[1718868801121,1.20832678,65983.0,65982.0,0.00289466]
[1718868801526,1.77452678,65983.0,65982.0,0.0072031]
[1718868801727,1.55986028,65983.0,65982.0,0.0072031]
[1718868801931,1.36088092,65983.0,65982.0,0.00289466]
[1718868802180,1.4970661,65983.0,65982.0,0.00289466]
[1718868802387,1.36088092,65983.0,65982.0,0.00289466]
[1718868802639,1.4970661,65983.0,65982.0,0.00289466]
[1718868803105,1.43666092,65983.0,65982.0,0.00289466]
[1718868803871,1.26410678,65983.0,65982.0,0.00289466]
[1718868804111,1.42040183,65983.0,65982.0,0.00289466]
[1718868804641,1.42040183,65983.0,65982.0,0.00708973]
[1718868805104,1.34462183,65983.0,65982.0,0.00708973]
[1718868805373,1.20832678,65983.0,65982.0,0.00708973]
[1718868805614,1.48271156,65983.0,65982.0,0.00289466]
[1718868805794,1.80204173,65983.0,65982.0,0.00289466]
[1718868806286,2.94566323,65983.0,65982.0,0.00289466]
[1718868806603,2.96150407,65983.0,65982.0,0.00289466]
[1718868808206,2.96606265,65983.0,65982.0,0.00289466]
[1718868812108,3.01606265,65983.0,65982.0,0.00289466]
[1718868814017,4.31169665,65983.0,65982.0,6.6e-07]
[1718868814318,4.38777327,65983.0,65982.0,6.6e-07]
[1718868814546,3.55504727,65983.0,65982.0,6.6e-07]
[1718868815474,3.54504727,65983.0,65982.0,6.6e-07]
[1718868815701,1.384314,65967.0,65964.0,0.45863634]
[1718868815927,1.79396753,65967.0,65964.0,0.45863634]
[1718868816150,1.79396753,65967.0,65966.0,0.01355093]
[1718868816427,1.84081598,65967.0,65966.0,0.009471]
[1718868816931,1.94081598,65967.0,65966.0,0.009471]
[1718868817150,2.09337012,65967.0,65966.0,0.009471]
[1718868817402,1.99337012,65967.0,65966.0,0.009471]
[1718868817669,2.17115012,65967.0,65966.0,0.009471]
[1718868818369,2.17215012,65967.0,65966.0,0.009471]
[1718868819370,2.16669756,65967.0,65966.0,0.009471]
[1718868820558,2.16741043,65967.0,65966.0,0.009471]
[1718868821483,2.06741043,65967.0,65966.0,0.009471]
[1718868822861,2.16741043,65967.0,65966.0,0.009471]
[1718868824187,2.47059143,65967.0,65966.0,0.009471]
[1718868824426,2.47059143,65967.0,65956.0,0.009471]